bitfinex-derivatives/quotes_SOLF0:USTF0_20251024
["timestamp","ask_amount","ask_price","bid_price","bid_amount"]
[1761297449202,4.06718944,193.12,193.09,2.84]
[1761297449403,0.34,193.13,193.09,2.84]
[1761297449606,4.06665083,193.12,193.09,2.84]
[1761297449794,0.34,193.13,193.09,2.84]
[1761297449999,4.06671326,193.12,193.09,2.84]
[1761297450199,0.35,193.14,193.09,2.84]
[1761297450498,4.41625882,193.13,193.09,2.84]
[1761297450699,0.35,193.13,193.09,2.84]
[1761297450905,0.35,193.13,193.06,4.6607]
[1761297451201,4.41642579,193.12,193.07,2.83]
[1761297451402,0.35,193.12,193.07,2.83]
[1761297454403,0.35,193.16,193.07,2.83]
[1761297454604,4.41475876,193.15,193.07,2.83]
[1761297454806,4.06475876,193.14,193.07,2.83]
[1761297455005,4.06475876,193.13,193.07,2.83]
[1761297455304,0.35,193.15,193.07,2.83]
[1761297455500,4.41438418,193.14,193.07,2.83]
[1761297455701,4.06438418,193.13,193.07,2.83]
[1761297456010,0.35,193.14,193.07,2.83]
[1761297456208,4.04036645,193.13,193.07,2.83]
[1761297456413,0.35,193.14,193.07,2.83]
[1761297456610,4.83019573,193.18,193.02,105.7613209]
[1761297456611,4.03998836,193.13,193.08,2.83]
[1761297456811,0.35,193.17,193.08,2.83]
[1761297457006,4.0399868,193.16,193.08,2.83]
[1761297457206,4.0399868,193.15,193.08,2.83]
[1761297457405,0.35,193.13,193.09,2.83]
[1761297459309,0.35,193.17,193.1,2.83]
[1761297459510,4.38904292,193.16,193.1,2.83]
[1761297459713,4.38904292,193.15,193.1,2.83]
[1761297460014,4.82012131,193.19,193.1,2.83]
[1761297460209,4.38904271,193.18,193.1,2.83]
[1761297460408,4.03904271,193.17,193.1,2.83]
[1761297460610,4.03904271,193.16,193.1,2.83]
[1761297460809,4.03904271,193.15,193.1,2.83]
[1761297461014,0.35,193.18,193.1,2.83]
[1761297461215,4.38891072,193.17,193.1,2.83]
[1761297461411,4.03891072,193.16,193.1,2.83]
[1761297461615,4.03891072,193.15,193.1,2.83]
[1761297461815,0.35,193.17,193.1,2.83]
[1761297462015,4.03879394,193.16,193.1,2.83]
[1761297462216,4.03879394,193.15,193.1,2.83]
[1761297462515,0.35,193.17,193.1,2.83]
[1761297462706,4.03899284,193.16,193.1,2.83]
[1761297462908,4.03899284,193.15,193.1,2.83]
[1761297463108,0.35,193.17,193.1,2.83]
[1761297463416,4.03920104,193.16,193.1,2.83]
[1761297463616,4.03920104,193.15,193.11,2.83]
[1761297463817,0.35,193.17,193.11,2.83]
[1761297464018,4.03928756,193.16,193.11,2.83]
[1761297464210,4.03928756,193.15,193.11,2.83]
[1761297464409,0.35,193.17,193.11,2.83]
[1761297464611,4.03980153,193.16,193.11,2.83]
[1761297464816,4.03980153,193.15,193.11,2.83]
[1761297465018,0.35,193.17,193.11,2.83]
[1761297465216,4.38980217,193.16,193.11,2.83]
[1761297465411,0.35,193.14,193.08,4.6603]
[1761297465616,0.35,193.14,193.07,2.83]
[1761297469621,4.39389886,193.13,193.07,2.83]
[1761297469822,4.39389886,193.12,193.07,2.83]
[1761297470024,0.35,193.12,193.07,2.83]
[1761297471312,4.04645437,193.11,193.07,2.83]
[1761297471524,4.39659878,193.1,193.07,2.83]
[1761297471723,0.35,193.1,193.07,2.83]
[1761297474428,4.82012131,193.14,193.07,2.83]
[1761297474627,0.35,193.12,193.07,2.83]
[1761297474927,4.04884773,193.11,193.07,2.83]
[1761297475222,4.04884773,193.1,193.07,2.83]
[1761297475426,0.35,193.12,193.07,2.83]
[1761297475626,4.04959146,193.11,193.07,2.83]
[1761297475920,0.35,193.12,193.07,2.83]
[1761297475921,4.04959146,193.1,193.07,2.83]
[1761297476124,0.35,193.12,193.07,2.83]
[1761297476319,4.04959137,193.11,193.07,2.83]
[1761297476526,4.04959137,193.1,193.07,2.83]
[1761297476725,0.35,193.12,193.07,2.83]
[1761297476929,4.0504661,193.11,193.07,2.83]
[1761297477127,4.0504661,193.1,193.07,2.83]
[1761297477429,0.35,193.12,193.07,2.83]
[1761297477630,4.0514958,193.11,193.07,2.83]
[1761297477826,4.0514958,193.1,193.07,2.83]
[1761297478027,4.0514958,193.09,193.07,2.83]
[1761297478228,0.35,193.12,193.07,2.83]
[1761297478429,4.05271319,193.11,193.07,2.83]
[1761297478727,4.05271319,193.1,193.07,2.83]
[1761297478926,4.05271319,193.09,193.07,2.83]
[1761297479126,0.35,193.12,193.07,2.83]
[1761297479322,4.05271319,193.11,193.07,2.83]
[1761297479526,4.05271319,193.1,193.07,2.83]
[1761297479823,4.05271319,193.09,193.07,2.83]
[1761297480023,0.35,193.12,193.07,2.83]
[1761297480223,4.05417036,193.11,193.07,2.83]
[1761297480433,4.05417036,193.1,193.07,2.83]
[1761297480627,4.05417036,193.09,193.07,2.83]
[1761297480828,0.35,193.12,193.07,2.83]
[1761297481129,4.05596725,193.11,193.07,2.83]
[1761297481429,4.05596725,193.1,193.07,2.83]
[1761297481619,4.05596725,193.09,193.07,2.83]
[1761297481822,4.05596725,193.08,193.07,2.83]
[1761297482729,4.05596725,193.08,193.03,2.7]
[1761297482932,4.05596725,193.07,193.03,2.7]
[1761297483133,0.34,193.1,193.03,2.7]
[1761297483333,4.05881706,193.09,193.03,2.7]
[1761297483531,4.05881706,193.08,193.03,2.7]
[1761297483727,4.05881706,193.07,193.03,2.7]
[1761297483932,0.34,193.1,193.03,2.7]
[1761297484131,4.05984105,193.09,193.03,2.7]
[1761297484338,4.05984105,193.08,193.03,2.7]
[1761297484529,4.05984105,193.07,193.03,2.7]
[1761297484736,0.34,193.1,193.03,2.7]
[1761297485021,4.06019756,193.09,193.03,2.7]
[1761297485229,4.06019756,193.08,193.03,2.7]
[1761297485429,4.06019756,193.07,193.03,2.7]
[1761297485629,0.34,193.1,193.03,2.7]
[1761297485829,4.05979325,193.09,193.03,2.7]
[1761297486023,4.05979325,193.08,193.03,2.7]
[1761297486225,4.05979325,193.07,193.03,2.7]
[1761297486424,0.34,193.1,193.03,2.7]
[1761297486626,4.06424136,193.09,193.03,2.7]
[1761297486827,4.06424136,193.08,193.03,2.7]
[1761297487132,4.06424136,193.07,193.03,2.7]
[1761297487434,0.34,193.1,193.03,2.7]
[1761297487637,4.06393957,193.09,193.03,2.7]
[1761297487934,4.06393957,193.08,193.03,2.7]
[1761297488134,4.06393957,193.07,193.03,2.7]
[1761297488336,0.34,193.1,193.03,2.7]
[1761297488536,4.06366975,193.09,193.03,2.7]
[1761297488835,4.06366975,193.08,193.03,2.7]
[1761297489037,4.06366975,193.07,193.03,2.7]
[1761297489336,0.34,193.1,193.03,2.7]
[1761297489538,4.06342266,193.09,193.03,2.7]
[1761297489837,4.06342266,193.08,193.03,2.7]
[1761297490041,4.40342266,193.07,193.03,2.7]
[1761297490242,4.06342266,193.06,193.03,2.7]
[1761297490435,0.34,193.07,193.03,2.7]
[1761297490636,4.40336899,193.06,193.03,2.7]
[1761297490841,0.34,193.06,193.03,2.7]
[1761297491741,4.06288381,193.05,193.03,2.7]
[1761297492044,0.34,193.06,193.03,2.7]
[1761297492246,4.06288381,193.05,193.03,2.7]
[1761297492445,0.34,193.09,193.03,2.7]
[1761297492651,4.40224171,193.08,193.03,2.7]
[1761297492841,4.06224171,193.07,193.03,4.6614]
[1761297493037,4.06224171,193.06,193.04,2.7]
[1761297493346,4.06224171,193.05,193.04,2.7]
[1761297494245,0.34,193.07,193.04,2.7]
[1761297494453,4.06114941,193.06,193.04,2.7]
[1761297494652,0.34,193.07,193.04,2.7]
[1761297494843,4.06114941,193.06,193.04,2.7]
[1761297495039,0.34,193.07,193.04,2.7]
[1761297495250,4.06114941,193.06,193.04,2.7]
[1761297495453,0.34,193.07,193.04,2.7]
[1761297495747,4.06075691,193.06,193.04,2.7]
[1761297495948,0.34,193.1,193.04,2.7]
[1761297496149,0.34,193.08,193.04,2.7]
[1761297496344,4.06071629,193.07,193.04,2.7]
[1761297496545,4.06071629,193.06,193.04,2.7]
[1761297496843,5.17386434,193.11,193.04,2.7]
[1761297497151,4.40041447,193.1,193.04,2.7]
[1761297497351,4.40041447,193.09,193.04,2.7]
[1761297497547,4.40041447,193.08,193.04,2.7]
[1761297497752,4.06041447,193.07,193.04,2.7]
[1761297498052,4.06041447,193.06,193.04,2.7]
[1761297498251,0.34,193.08,193.04,2.7]
[1761297498444,4.05989727,193.07,193.04,2.7]
[1761297498640,4.05989727,193.06,193.04,2.7]
[1761297498945,0.34,193.08,193.04,2.7]
[1761297499140,4.05989727,193.07,193.04,2.7]
[1761297499450,4.05989727,193.06,193.04,2.7]
[1761297499652,0.34,193.08,193.04,2.7]
[1761297499853,4.05971999,193.07,193.04,2.7]
[1761297500045,4.05971999,193.06,193.04,2.7]
[1761297500244,0.34,193.1,193.04,2.7]
[1761297500552,0.34,193.08,193.04,2.7]
[1761297500752,4.059613,193.07,193.04,2.7]
[1761297500953,4.83386434,193.11,193.05,2.7]
[1761297501255,4.05948775,193.1,193.05,2.7]
[1761297501554,4.05948775,193.09,193.05,2.7]
[1761297501754,4.05948775,193.08,193.05,2.7]
[1761297501955,4.05948775,193.07,193.05,2.7]
[1761297502157,4.83386434,193.11,193.05,2.7]
[1761297502351,4.05936795,193.1,193.05,2.7]
[1761297502552,4.05936795,193.09,193.05,4.6609]
[1761297502750,4.05936795,193.08,193.06,2.7]
[1761297503057,0.34,193.15,193.06,2.7]
[1761297503257,0.34,193.15,193.09,2.7]
[1761297507752,0.34,193.13,193.01,42.86]
[1761297508062,0.34,193.13,193.02,2.7]
[1761297512763,0.34,193.12,193.02,2.7]
[1761297513857,4.83386434,193.13,193.02,2.7]
[1761297514161,4.83386434,193.14,193.02,2.7]
[1761297514857,4.04309759,193.13,193.02,2.7]
[1761297515062,4.04309759,193.12,193.02,2.7]
[1761297515263,4.04309759,193.11,193.02,2.7]
[1761297515459,4.04309759,193.1,193.02,2.7]
[1761297515662,4.83386434,193.14,193.02,2.7]
[1761297515860,4.04312425,193.13,193.02,2.7]
[1761297516060,4.04312425,193.12,193.02,2.7]
[1761297516262,4.04312425,193.11,193.02,2.7]
[1761297516463,4.04312425,193.1,193.02,2.7]
[1761297516660,4.83386434,193.14,193.02,2.7]
[1761297516857,4.00936922,193.13,193.02,2.7]
[1761297517062,4.00936922,193.12,193.02,2.7]
[1761297517262,4.00936922,193.11,193.02,2.7]
[1761297517460,4.00936922,193.1,193.02,2.7]
[1761297517662,0.34,193.14,193.02,2.7]
[1761297517863,4.00915493,193.13,193.02,2.7]
[1761297518166,4.00915493,193.12,193.02,2.7]
[1761297518361,4.00915493,193.11,193.02,2.7]
[1761297518561,4.00915493,193.1,193.02,2.7]
[1761297518762,0.34,193.13,193.02,2.7]
[1761297518966,4.00903073,193.12,193.02,2.7]
[1761297519165,4.00903073,193.11,193.02,2.7]
[1761297519466,4.00903073,193.1,193.02,2.7]
[1761297519666,0.34,193.13,193.02,2.7]
[1761297519867,4.00894529,193.12,193.02,2.7]
[1761297520067,4.00894529,193.11,193.02,2.7]
[1761297520268,4.00894529,193.1,193.02,2.7]
[1761297520465,0.34,193.13,193.02,2.7]
[1761297520665,4.00887003,193.12,193.02,2.7]
[1761297520864,4.00887003,193.11,193.02,2.7]
[1761297521065,4.00887003,193.1,193.02,2.7]
[1761297521257,0.34,193.13,193.02,2.7]
[1761297521461,4.00868808,193.12,193.02,2.7]
[1761297521662,4.00868808,193.11,193.02,2.7]
[1761297521969,0.34,193.13,193.02,2.7]
[1761297522268,4.00868808,193.12,193.02,2.7]
[1761297522468,4.00868808,193.11,193.02,2.7]
[1761297522768,0.34,193.13,193.02,2.7]
[1761297522968,4.00855354,193.12,193.02,2.7]
[1761297523165,4.00855354,193.11,193.02,2.7]
[1761297523366,0.34,193.13,193.02,2.7]
[1761297523565,4.00842473,193.12,193.02,2.7]
[1761297523768,4.00842473,193.11,193.02,2.7]
[1761297524070,0.34,193.13,193.02,2.7]
[1761297524270,4.00842473,193.12,193.02,2.7]
[1761297524572,4.00842473,193.11,193.02,2.7]
[1761297524771,0.34,193.13,193.02,2.7]
[1761297525070,4.00830154,193.12,193.02,2.7]
[1761297525271,4.00830154,193.11,193.02,2.7]
[1761297525472,0.34,193.13,193.02,2.7]
[1761297525770,4.34831562,193.12,193.02,2.7]
[1761297525960,4.00831562,193.11,193.02,2.7]
[1761297526161,0.34,193.12,193.02,2.7]
[1761297526364,4.00833573,193.11,193.02,2.7]
[1761297526564,0.34,193.12,193.02,2.7]
[1761297526874,4.00820658,193.11,193.02,2.7]
[1761297527066,0.34,193.12,193.02,2.7]
[1761297527267,4.34820628,193.11,193.02,2.7]
[1761297527574,4.00820628,193.1,193.02,2.7]
[1761297527774,0.34,193.11,193.02,2.7]
[1761297528073,4.0081422,193.1,193.02,2.7]
[1761297528269,0.34,193.11,193.02,2.7]
[1761297528477,0.34,193.09,193.02,2.7]
[1761297528773,0.34,193.09,193.04,2.86]
[1761297529473,0.34,193.07,193.01,2.86]
[1761297530170,0.34,193.07,193.03,7.5213]
[1761297530375,0.34,193.07,193.04,2.86]
[1761297539085,0.34,193.11,193.04,2.86]
[1761297539382,0.35,193.09,193.04,2.86]
[1761297539584,4.35828383,193.08,193.04,2.86]
[1761297539882,4.00849104,193.07,193.04,2.86]
[1761297540072,0.35,193.08,193.04,2.86]
[1761297540274,4.00849104,193.07,193.04,2.86]
[1761297540472,0.35,193.08,193.04,2.86]
[1761297540674,4.00866979,193.07,193.04,2.86]
[1761297540878,5.18386434,193.12,193.05,2.6]
[1761297541181,4.00860801,193.11,193.05,2.6]
[1761297541383,4.00860801,193.1,193.05,2.6]
[1761297541576,4.00860801,193.09,193.05,2.6]
[1761297541781,4.00860801,193.08,193.05,2.6]
[1761297541982,0.35,193.12,193.06,2.6]
[1761297542281,4.00871147,193.11,193.06,2.6]
[1761297542481,4.00871147,193.1,193.06,2.6]
[1761297542682,4.83386434,193.14,193.06,2.6]
[1761297542880,4.3585158,193.13,193.08,2.6]
[1761297543078,4.0085158,193.12,193.08,2.6]
[1761297543284,0.35,193.13,193.08,2.6]
[1761297543480,4.00852124,193.12,193.08,2.6]
[1761297543684,0.35,193.13,193.08,2.6]
[1761297543889,4.00852124,193.12,193.08,2.6]
[1761297544185,0.35,193.13,193.08,2.6]
[1761297544381,4.00853237,193.12,193.08,2.6]
[1761297544577,0.35,193.13,193.08,2.6]
[1761297544888,4.00853237,193.12,193.08,2.6]
[1761297545088,0.35,193.13,193.08,2.6]
[1761297545388,4.00841206,193.12,193.08,2.6]
[1761297545686,0.35,193.13,193.08,2.6]
[1761297545987,4.00866392,193.12,193.08,2.6]
[1761297546186,0.35,193.13,193.08,2.6]
[1761297546386,4.00358377,193.12,193.08,2.6]
[1761297546588,0.35,193.13,193.08,2.6]
[1761297546785,4.00358377,193.12,193.08,2.6]
[1761297546988,0.35,193.13,193.08,2.6]
[1761297547188,4.00358377,193.12,193.08,2.6]
[1761297547384,5.18386434,193.16,193.05,2.6]
[1761297547584,4.00344477,193.15,193.05,2.6]
[1761297547887,4.00344477,193.14,193.05,2.6]
[1761297548088,4.00344477,193.13,193.05,2.6]
[1761297548289,4.00344477,193.12,193.05,2.6]
[1761297548585,0.35,193.16,193.05,2.6]
[1761297548793,4.00342803,193.15,193.05,2.6]
[1761297548993,4.00342803,193.14,193.09,2.6]
[1761297549293,4.00342803,193.13,193.09,2.6]
[1761297549484,4.00342803,193.12,193.09,2.6]
[1761297549686,0.35,193.16,193.09,2.6]
[1761297549885,4.00335063,193.15,193.09,2.6]
[1761297550084,4.35335063,193.14,193.09,7.2599]
[1761297550279,4.00335063,193.13,193.1,2.6]
[1761297550584,4.00335063,193.12,193.1,2.6]
[1761297550783,0.35,193.14,193.1,2.6]
[1761297550978,4.00327433,193.13,193.1,2.6]
[1761297551186,4.00327433,193.12,193.1,2.6]
[1761297551389,0.35,193.14,193.1,2.6]
[1761297551588,4.00319882,193.13,193.1,2.6]
[1761297551790,4.00319882,193.12,193.1,2.6]
[1761297552092,5.18386434,193.17,193.11,2.6]
[1761297552286,4.00280352,193.16,193.11,2.6]
[1761297552585,4.00280352,193.15,193.13,2.6]
[1761297552890,0.35,193.17,193.14,4.70713072]
[1761297553190,4.00276947,193.16,193.15,7.30713072]
[1761297554483,4.00276947,193.16,193.15,2.6]
[1761297560787,5.18386434,193.21,193.15,2.6]
[1761297560983,0.35,193.19,193.15,2.6]
[1761297561185,3.99926285,193.18,193.15,2.6]
[1761297561395,3.99926285,193.17,193.15,2.6]
[1761297561596,0.35,193.19,193.15,2.6]
[1761297561895,3.99824151,193.18,193.15,2.6]
[1761297562194,4.83386434,193.22,193.08,2.6]
[1761297562496,3.99706773,193.21,193.08,2.6]
[1761297562698,3.99706773,193.2,193.08,2.6]
[1761297562890,3.99706773,193.19,193.17,2.6]
[1761297563086,0.35,193.23,193.17,2.6]
[1761297563394,3.99556908,193.22,193.17,2.6]
[1761297563582,3.99556908,193.21,193.18,2.6]
[1761297563787,0.35,193.23,193.18,2.6]
[1761297563987,3.99520472,193.22,193.18,2.6]
[1761297564185,0.35,193.23,193.18,2.6]
[1761297564388,3.99326085,193.22,193.18,2.6]
[1761297564596,0.35,193.23,193.18,2.6]
[1761297564787,3.99313785,193.22,193.19,2.6]
[1761297564994,0.35,193.23,193.19,2.6]
[1761297565996,0.35,193.26,193.19,2.6]
[1761297566197,3.99104331,193.25,193.19,2.6]
[1761297566392,4.34104331,193.24,193.2,4.81138896]
[1761297566699,3.99104331,193.23,193.21,7.41138896]
[1761297566898,0.35,193.24,193.22,4.81138896]
[1761297567099,0.35,193.24,193.23,4.81138896]
[1761297567399,4.33808298,193.24,193.23,4.81138896]
[1761297570302,0.35,193.24,193.23,4.81138896]
[1761297571007,0.34,193.27,193.23,7.65138896]
[1761297571299,4.32398371,193.26,193.24,4.81138896]
[1761297571500,4.32398371,193.25,193.23,2.84]
[1761297571689,0.34,193.25,193.24,4.80458125]
[1761297571893,4.32290353,193.25,193.24,4.80458125]
[1761297573805,0.34,193.25,193.24,4.80458125]
[1761297574207,0.34,193.28,193.24,4.80458125]
[1761297574403,0.34,193.26,193.25,4.80458125]
[1761297574706,4.32039102,193.26,193.25,4.80458125]
[1761297584226,5.36039102,193.26,193.25,0.95405911]
[1761297584413,9.85425536,193.26,193.17,2.84]
[1761297584617,8.81425536,193.25,193.17,2.84]
[1761297584822,3.98039102,193.24,193.17,2.84]
[1761297585022,4.83386434,193.25,193.17,2.84]
[1761297585023,3.98039102,193.23,193.17,2.84]
[1761297585223,3.98039102,193.22,193.17,2.84]
[1761297585524,3.98039102,193.21,193.07,2.84]
[1761297585825,3.98039102,193.2,193.07,2.84]
[1761297586025,3.98039102,193.19,193.07,2.84]
[1761297586232,4.83386434,193.23,193.07,2.84]
[1761297586425,3.96061392,193.22,193.07,2.84]
[1761297586628,3.96061392,193.21,193.07,2.84]
[1761297586924,3.96061392,193.2,193.11,4.6593]
[1761297587129,3.96061392,193.19,193.12,2.84]
[1761297587329,4.83386434,193.23,193.12,2.84]
[1761297587526,3.96186622,193.22,193.12,2.84]
[1761297587721,3.96186622,193.21,193.12,2.84]
[1761297587928,3.96186622,193.2,193.12,2.84]
[1761297588127,3.96186622,193.19,193.12,2.84]
[1761297588328,3.96186622,193.18,193.12,2.84]
[1761297588533,4.83386434,193.22,193.12,2.84]
[1761297588735,3.96284511,193.21,193.12,2.84]
[1761297589033,3.96284511,193.2,193.12,2.84]
[1761297589233,3.96284511,193.19,193.12,2.84]
[1761297589533,3.96284511,193.18,193.12,2.84]
[1761297589733,4.83386434,193.22,193.12,2.84]
[1761297590035,3.96318753,193.21,193.12,2.84]
[1761297590236,3.96318753,193.2,193.12,2.84]
[1761297590431,3.96318753,193.19,193.12,2.84]
[1761297590633,3.96318753,193.18,193.12,2.84]
[1761297590830,4.83386434,193.22,193.12,2.84]
[1761297591133,3.96367192,193.21,193.12,2.84]
[1761297591335,3.96367192,193.2,193.12,7.4992]
[1761297591530,4.83386434,193.22,193.13,2.84]
[1761297591531,3.96367192,193.19,193.13,2.84]
[1761297591734,3.96367192,193.18,193.13,2.84]
[1761297591936,4.83386434,193.22,193.13,2.84]
[1761297592135,3.96417797,193.21,193.14,2.84]
[1761297592328,3.96417797,193.2,193.14,2.84]
[1761297592528,3.96417797,193.19,193.14,2.84]
[1761297592839,3.96417797,193.18,193.14,2.84]
[1761297593042,4.83386434,193.23,193.14,2.84]
[1761297593240,8.7985679,193.22,193.14,2.84]
[1761297593437,3.96470356,193.21,193.14,2.84]
[1761297593638,3.96470356,193.2,193.14,2.84]
[1761297593841,3.96470356,193.19,193.14,2.84]
[1761297594038,3.96470356,193.18,193.14,2.84]
[1761297594238,4.83386434,193.22,193.14,2.84]
[1761297594439,3.96574209,193.21,193.14,2.84]
[1761297594639,3.96574209,193.2,193.14,2.84]
[1761297594942,3.96574209,193.19,193.14,2.84]
[1761297595143,3.96574209,193.18,193.14,2.84]
[1761297595345,4.83386434,193.22,193.14,2.84]
[1761297595544,3.96630236,193.21,193.14,2.84]
[1761297595746,3.96630236,193.2,193.14,2.84]
[1761297595945,3.96630236,193.19,193.14,2.84]
[1761297596146,3.96630236,193.18,193.14,2.84]
[1761297596342,4.83386434,193.22,193.14,2.84]
[1761297596548,3.96689204,193.21,193.14,2.84]
[1761297596847,3.96689204,193.2,193.14,2.84]
[1761297597047,3.96689204,193.19,193.14,2.84]
[1761297597249,3.96689204,193.18,193.14,2.84]
[1761297597452,4.83386434,193.22,193.14,2.84]
[1761297597644,3.96738812,193.21,193.14,2.84]
[1761297597840,3.96738812,193.2,193.14,2.84]
[1761297598044,3.96738812,193.19,193.14,2.84]
[1761297598244,3.96738812,193.18,193.14,2.84]
[1761297598442,4.83386434,193.22,193.14,2.84]
[1761297598646,3.96785841,193.21,193.14,2.84]
[1761297598850,3.96785841,193.2,193.14,2.84]
[1761297599047,3.96785841,193.19,193.14,2.84]
[1761297599249,3.96785841,193.18,193.14,2.84]
[1761297599449,3.96785841,193.17,193.14,2.84]
[1761297599649,4.83386434,193.22,193.14,2.84]
[1761297599850,3.96830632,193.21,193.14,2.84]
[1761297600050,3.96830632,193.2,193.14,2.84]
[1761297600251,3.96830632,193.19,193.14,2.84]
[1761297600452,3.96830632,193.18,193.14,2.84]
[1761297600649,4.83386434,193.22,193.14,2.84]
[1761297600851,3.96864162,193.21,193.14,2.84]
[1761297601054,3.96864162,193.2,193.14,2.84]
[1761297601253,3.96864162,193.19,193.14,2.84]
[1761297601448,3.96864162,193.18,193.11,2.81]
[1761297601652,3.96864162,193.17,193.11,2.81]
[1761297601853,3.96864162,193.16,193.11,2.81]
[1761297602152,4.83386434,193.2,193.11,2.81]
[1761297602354,3.96986413,193.19,193.11,2.81]
[1761297602658,3.96986413,193.18,193.13,4.6589]
[1761297602852,4.83386434,193.23,193.14,2.81]
[1761297603053,3.96912591,193.22,193.14,2.81]
[1761297603252,3.96912591,193.21,193.14,2.81]
[1761297603551,3.96912591,193.2,193.14,2.81]
[1761297603751,3.96912591,193.19,193.14,2.81]
[1761297603951,3.96912591,193.18,193.14,2.81]
[1761297604154,4.83386434,193.23,193.14,2.81]
[1761297604362,3.9702648,193.22,193.14,2.81]
[1761297604562,3.9702648,193.21,193.14,2.81]
[1761297604765,3.9702648,193.2,193.14,2.81]
[1761297605061,3.9702648,193.19,193.14,2.81]
[1761297605258,3.9702648,193.18,193.14,2.81]
[1761297605451,4.83386434,193.22,193.14,2.81]
[1761297605652,3.97089408,193.21,193.14,2.81]
[1761297605851,3.97089408,193.2,193.14,2.81]
[1761297606052,3.97089408,193.19,193.14,2.81]
[1761297606358,3.97089408,193.18,193.14,2.81]
[1761297606561,4.83386434,193.22,193.14,2.81]
[1761297606764,3.98078598,193.21,193.15,2.81]
[1761297606961,3.98078598,193.2,193.15,2.81]
[1761297607161,4.83386434,193.24,193.15,2.81]
[1761297607465,3.98067477,193.23,193.15,2.81]
[1761297607666,3.98067477,193.22,193.15,2.81]
[1761297607863,4.83386434,193.26,193.15,2.81]
[1761297608066,3.98026576,193.25,193.18,2.81]
[1761297608268,3.98026576,193.24,193.18,2.81]
[1761297608467,3.98026576,193.23,193.18,2.81]
[1761297608761,3.98026576,193.22,193.18,2.81]
[1761297608970,3.98021444,193.21,193.18,2.81]
[1761297609266,4.83386434,193.25,193.18,2.81]
[1761297609461,3.98025739,193.24,193.18,2.81]
[1761297609661,3.98025739,193.23,193.18,2.81]
[1761297609860,3.98025739,193.22,193.18,2.81]
[1761297610066,3.98025739,193.21,193.18,2.81]
[1761297610361,4.83386434,193.26,193.18,2.81]
[1761297610563,3.98027928,193.25,193.18,2.81]
[1761297610766,3.98027928,193.24,193.18,2.81]
[1761297610964,3.98027928,193.23,193.18,2.81]
[1761297611170,3.98027928,193.22,193.18,2.81]
[1761297611366,3.98027928,193.21,193.18,2.81]
[1761297611569,4.83386434,193.26,193.18,2.81]
[1761297611772,3.98032046,193.25,193.18,2.81]
[1761297612062,8.8141848,193.24,193.15,7.4686]
[1761297612270,8.8141848,193.23,193.15,7.4686]
[1761297612477,3.98032046,193.22,193.15,7.4686]
[1761297612659,3.98032046,193.21,193.15,7.4686]
[1761297612863,3.98032046,193.2,193.16,2.81]
[1761297613071,3.98032046,193.19,193.16,2.81]
[1761297613267,4.83386434,193.23,193.16,2.81]
[1761297613469,3.98103905,193.22,193.16,2.81]
[1761297613671,3.98103905,193.21,193.16,2.81]
[1761297613871,3.98103905,193.2,193.16,2.81]